bitfinex-derivatives/quotes_BTCF0:USTF0_20260221
["timestamp","ask_amount","ask_price","bid_price","bid_amount"]
[1771672054308,0.014651,68275.0,68265.0,0.014653]
[1771672055313,0.014651,68275.0,68267.0,0.014652]
[1771672055814,0.01465,68276.0,68268.0,0.014652]
[1771672056215,0.01465,68276.0,68267.0,0.014652]
[1771672056414,0.014651,68275.0,68268.0,0.014652]
[1771672056712,0.014651,68275.0,68269.0,0.014652]
[1771672057610,0.014651,68274.0,68267.0,0.014652]
[1771672057812,0.014651,68274.0,68266.0,0.014652]
[1771672058414,0.014651,68274.0,68267.0,0.014652]
[1771672058915,0.014651,68275.0,68268.0,0.029304]
[1771672059412,0.014651,68275.0,68269.0,0.014652]
[1771672059814,0.01465,68276.0,68270.0,0.014652]
[1771672060815,0.01465,68277.0,68271.0,0.014651]
[1771672061114,0.01465,68276.0,68270.0,0.014652]
[1771672064020,0.01465,68276.0,68270.0,0.029303]
[1771672064219,0.01465,68276.0,68270.0,0.014651]
[1771672064521,0.01465,68276.0,68271.0,0.014651]
[1771672064821,0.01465,68277.0,68271.0,0.014651]
[1771672065323,0.01465,68276.0,68270.0,0.014651]
[1771672065820,0.01465,68276.0,68271.0,0.014651]
[1771672067316,0.01465,68276.0,68268.0,0.014652]
[1771672068425,0.014651,68274.0,68268.0,0.014652]
[1771672069223,0.014651,68274.0,68266.0,0.014652]
[1771672070223,0.014651,68273.0,68266.0,0.014652]
[1771672070823,0.01465,68276.0,68267.0,0.014652]
[1771672071022,0.014651,68275.0,68268.0,0.014652]
[1771672074033,0.014651,68275.0,68265.0,0.32809234]
[1771672074222,0.014651,68275.0,68264.0,0.12466873]
[1771672074223,0.014651,68274.0,68266.0,0.014652]
[1771672074533,0.014651,68274.0,68266.0,0.029304]
[1771672075428,0.01465,68278.0,68269.0,0.014652]
[1771672075830,0.01465,68279.0,68269.0,0.014652]
[1771672076533,0.01465,68278.0,68269.0,0.014652]
[1771672076730,0.01465,68278.0,68267.0,0.014652]
[1771672076931,0.01465,68279.0,68269.0,0.014652]
[1771672077236,0.01465,68279.0,68271.0,0.014651]
[1771672077431,0.01465,68279.0,68271.0,0.029302]
[1771672077633,0.01465,68279.0,68272.0,0.014651]
[1771672078829,0.01465,68279.0,68271.0,0.014651]
[1771672079037,0.01465,68279.0,68273.0,0.014651]
[1771672079229,0.01465,68279.0,68274.0,0.014651]
[1771672080732,0.01465,68279.0,68275.0,0.014651]
[1771672080934,0.014649,68281.0,68277.0,0.01465]
[1771672081737,0.014649,68283.0,68278.0,0.01465]
[1771672082135,0.014649,68282.0,68278.0,0.01465]
[1771672082539,0.014649,68282.0,68277.0,0.01465]
[1771672082729,0.014649,68282.0,68270.0,0.07189179]
[1771672083232,0.014649,68283.0,68271.0,0.014651]
[1771672083432,0.014649,68283.0,68270.0,0.05723979]
[1771672083433,0.014649,68283.0,68270.0,0.18190752]
[1771672083629,0.014649,68282.0,68270.0,0.18190752]
[1771672084238,0.014649,68280.0,68270.0,0.18190752]
[1771672085839,0.014649,68282.0,68272.0,0.014651]
[1771672086339,0.014649,68284.0,68270.0,0.18190652]
[1771672086340,0.01465,68280.0,68270.0,0.18190652]
[1771672086534,0.01465,68280.0,68270.0,0.12466673]
[1771672086744,0.01465,68277.0,68270.0,0.11001573]
[1771672088243,0.014651,68275.0,68270.0,0.11001573]
[1771672089246,0.014651,68274.0,68270.0,0.11001573]
[1771672090346,0.014651,68273.0,68270.0,0.11001573]
[1771672090744,0.014651,68275.0,68270.0,0.11001573]
[1771672091049,0.014649,68283.0,68270.0,0.11001573]
[1771672091251,0.014651,68274.0,68270.0,0.11001573]
[1771672093251,0.01465,68276.0,68270.0,0.11001573]
[1771672094744,0.014647,68293.0,68270.0,0.11001573]
[1771672094949,0.20388895,68290.0,68270.0,0.11001573]
[1771672095151,0.01465,68278.0,68270.0,0.12466673]
[1771672095342,0.014651,68276.0,68270.0,0.11001573]
[1771672095541,0.01465,68278.0,68270.0,0.11001573]
[1771672095850,0.01465,68276.0,68270.0,0.11001573]
[1771672098250,0.01465,68278.0,68270.0,0.12466673]
[1771672098448,0.01465,68278.0,68270.0,0.13931773]
[1771672098753,0.01465,68278.0,68271.0,0.014651]
[1771672100553,0.01465,68280.0,68272.0,0.014651]
[1771672100852,0.014649,68281.0,68273.0,0.014651]
[1771672101047,0.01465,68280.0,68275.0,0.00092]
[1771672101353,0.01465,68280.0,68273.0,0.014651]
[1771672102251,0.01465,68280.0,68273.0,0.029302]
[1771672102552,0.01465,68280.0,68273.0,0.014651]
[1771672102855,0.01465,68280.0,68273.0,0.029302]
[1771672103857,0.01465,68280.0,68274.0,0.014651]
[1771672104957,0.014649,68281.0,68274.0,0.014651]
[1771672105156,0.014649,68280.0,68274.0,0.014651]
[1771672105455,0.014649,68280.0,68271.0,0.014651]
[1771672105648,0.014649,68281.0,68271.0,0.014651]
[1771672105849,0.014649,68282.0,68272.0,0.014651]
[1771672106049,0.014649,68282.0,68270.0,0.18190652]
[1771672106050,0.014649,68282.0,68273.0,0.014651]
[1771672106256,0.01465,68280.0,68273.0,0.014651]
[1771672106754,0.01465,68280.0,68271.0,0.014651]
[1771672107455,0.0293,68280.0,68271.0,0.014651]
[1771672107757,0.01465,68279.0,68271.0,0.014651]
[1771672108347,0.01465,68278.0,68271.0,0.014651]
[1771672108747,0.01465,68277.0,68270.0,0.18190752]
[1771672109755,0.01465,68278.0,68270.0,0.18190752]
[1771672110056,0.01465,68278.0,68272.0,0.00096]
[1771672110257,0.01465,68278.0,68270.0,0.12466773]
[1771672110456,0.01465,68277.0,68270.0,0.12466773]
[1771672111654,0.014651,68274.0,68270.0,0.11001573]
[1771672111859,0.014651,68275.0,68269.0,0.32809234]
[1771672112158,0.014651,68275.0,68268.0,0.32809234]
[1771672115260,0.01465,68280.0,68268.0,0.34274434]
[1771672115463,0.01465,68280.0,68268.0,0.32809234]
[1771672115656,0.01465,68277.0,68268.0,0.32809234]
[1771672115848,0.01465,68280.0,68268.0,0.34274434]
[1771672116050,0.014649,68281.0,68274.0,0.00088]
[1771672116357,0.014649,68281.0,68270.0,0.17856286]
[1771672116862,0.014649,68284.0,68272.0,0.014651]
[1771672117360,0.014647,68290.0,68274.0,0.10337019]
[1771672117568,0.43851621,68316.0,68287.0,0.10483533]
[1771672117765,0.014641,68319.0,68287.0,0.10483533]
[1771672117766,0.20189713,68314.0,68300.0,0.17856286]
[1771672117967,0.014643,68312.0,68295.0,0.014646]
[1771672118172,0.014643,68310.0,68295.0,0.014646]
[1771672118361,0.014643,68309.0,68295.0,0.18980147]
[1771672118663,0.014644,68307.0,68295.0,0.17515547]
[1771672118971,0.014644,68306.0,68295.0,0.18980147]
[1771672119266,0.014643,68309.0,68298.0,0.014646]
[1771672119563,0.014643,68311.0,68299.0,0.014645]
[1771672119765,0.19320586,68310.0,68299.0,0.014645]
[1771672119965,0.014643,68310.0,68299.0,0.014645]
[1771672120166,0.014643,68311.0,68299.0,0.014645]
[1771672120167,0.014643,68309.0,68299.0,0.014645]
[1771672120357,0.07050076,68315.0,68295.0,0.18980147]
[1771672120358,0.014644,68307.0,68295.0,0.17515547]
[1771672120560,0.014644,68305.0,68295.0,0.17515547]
[1771672120867,0.014645,68300.0,68289.0,0.014647]
[1771672121063,0.19320786,68300.0,68289.0,0.014647]
[1771672121264,0.014645,68300.0,68289.0,0.014647]
[1771672121467,0.014646,68298.0,68286.0,0.014648]
[1771672121662,0.014647,68293.0,68283.0,0.2627332]
[1771672121868,0.014646,68297.0,68284.0,0.014649]
[1771672122060,0.014647,68294.0,68282.0,0.014649]
[1771672122764,0.014646,68296.0,68285.0,0.014648]
[1771672123373,0.014646,68296.0,68280.0,0.17856286]
[1771672123576,0.014647,68291.0,68274.0,0.014651]
[1771672123760,0.014647,68291.0,68280.0,0.17856286]
[1771672123961,0.014647,68292.0,68280.0,0.17856286]
[1771672124263,0.014647,68290.0,68280.0,0.17856286]
[1771672124969,0.014647,68292.0,68280.0,0.17856286]
[1771672125477,0.014645,68302.0,68280.0,0.17856286]
[1771672125669,0.014646,68296.0,68281.0,0.11948433]
[1771672125964,0.014646,68297.0,68281.0,0.10483533]
[1771672126358,0.014647,68293.0,68281.0,0.11948433]
[1771672127372,0.014647,68292.0,68281.0,0.11948433]
[1771672127773,0.014644,68305.0,68281.0,0.11948433]
[1771672127774,0.014647,68290.0,68281.0,0.10483533]
[1771672128771,0.014648,68286.0,68280.0,0.17856286]
[1771672129067,0.014648,68287.0,68278.0,0.32897133]
[1771672129794,0.014648,68288.0,68278.0,0.32897133]
[1771672129981,0.014648,68288.0,68278.0,0.50753419]
[1771672130170,0.00771052,68288.0,68278.0,0.61236952]
[1771672130374,0.014647,68293.0,68279.0,0.10483533]
[1771672130568,0.014647,68293.0,68280.0,0.17856286]
[1771672130770,0.014647,68290.0,68280.0,0.17856286]
[1771672131173,0.014648,68288.0,68280.0,0.17856286]
[1771672131472,0.014648,68288.0,68279.0,0.10483533]
[1771672132674,0.014648,68290.0,68279.0,0.10483533]
[1771672132864,0.00733246,68290.0,68281.0,0.10483533]
[1771672133069,0.014647,68292.0,68281.0,0.10483533]
[1771672133271,0.014647,68290.0,68281.0,0.10483533]
[1771672133472,0.014648,68287.0,68280.0,0.17856286]
[1771672133676,0.014648,68287.0,68278.0,0.32897133]
[1771672133879,0.014648,68289.0,68278.0,0.43380666]
[1771672134078,0.014648,68288.0,68279.0,0.17856286]
[1771672134280,0.014648,68289.0,68279.0,0.17856286]
[1771672134674,0.014648,68288.0,68279.0,0.17856286]
[1771672135581,0.17856286,68300.0,68285.0,0.32897133]
[1771672135883,0.014648,68289.0,68286.0,0.32971642]
[1771672136078,0.014648,68288.0,68287.0,0.13224281]
[1771672136274,0.014648,68289.0,68287.0,0.13224281]
[1771672136474,0.014647,68290.0,68280.0,0.32897133]
[1771672137273,0.014647,68293.0,68280.0,0.32897133]
[1771672137274,0.014647,68292.0,68280.0,0.32897133]
[1771672137478,0.014647,68291.0,68280.0,0.32897133]
[1771672139186,0.014647,68291.0,68280.0,0.34362033]
[1771672139485,0.014647,68292.0,68281.0,0.014649]
[1771672139878,0.014647,68291.0,68280.0,0.34362033]
[1771672140686,0.014647,68291.0,68281.0,0.014649]
[1771672140889,0.014646,68296.0,68285.0,0.11948333]
[1771672141184,0.014646,68296.0,68286.0,0.17856286]
[1771672141783,0.014646,68295.0,68285.0,0.10483533]
[1771672142085,0.014646,68294.0,68285.0,0.10483533]
[1771672142274,0.014647,68293.0,68285.0,0.10483533]
[1771672142473,0.014647,68293.0,68281.0,0.34362033]
[1771672142474,0.014647,68291.0,68281.0,0.32897133]
[1771672142677,0.014647,68290.0,68280.0,0.32897133]
[1771672142879,0.014647,68292.0,68281.0,0.014649]
[1771672143288,0.014647,68291.0,68281.0,0.014649]
[1771672143490,0.014647,68291.0,68280.0,0.34362033]
[1771672143691,0.014647,68290.0,68280.0,0.32897133]
[1771672143887,0.014648,68288.0,68280.0,0.32897133]
[1771672144089,0.014648,68288.0,68279.0,0.50753419]
[1771672144285,0.014648,68288.0,68280.0,0.32897133]
[1771672144490,0.014648,68286.0,68280.0,0.32897133]
[1771672144690,0.014648,68288.0,68280.0,0.32897133]
[1771672144883,0.014648,68287.0,68280.0,0.32897133]
[1771672145588,0.11908979,68296.0,68282.0,0.32897133]
[1771672145789,0.014648,68288.0,68282.0,0.32897133]
[1771672146293,0.014648,68288.0,68284.0,0.32897133]
[1771672146493,0.014648,68288.0,68278.0,0.17856286]
[1771672146494,0.014648,68288.0,68283.0,0.32897133]
[1771672146699,0.014648,68287.0,68283.0,0.32897133]
[1771672146891,0.014648,68288.0,68283.0,0.32897133]
[1771672147193,0.014648,68288.0,68284.0,0.32897133]
[1771672148190,0.014648,68288.0,68285.0,0.32233584]
[1771672148498,0.014648,68288.0,68286.0,0.32233584]
[1771672148689,0.014648,68288.0,68287.0,0.32233584]
[1771672149897,0.014647,68291.0,68287.0,0.32233584]
[1771672150096,0.12625239,68293.0,68263.0,5.9e-07]
[1771672150298,0.14090239,68279.0,68262.0,0.00011879]
[1771672150491,0.25864371,68278.0,68262.0,0.00011879]
[1771672150691,0.014652,68271.0,68262.0,0.00011879]
[1771672150892,0.014651,68274.0,68263.0,0.014653]
[1771672151095,0.014651,68274.0,68264.0,0.19321586]
[1771672151300,0.014648,68285.0,68264.0,0.17856286]
[1771672151598,0.24373653,68284.0,68270.0,0.17856286]
[1771672151794,0.014651,68275.0,68270.0,0.17856286]
[1771672152000,0.014651,68275.0,68267.0,0.014652]
[1771672153397,0.014651,68272.0,68262.0,0.00011879]
[1771672153808,0.014651,68272.0,68262.0,0.01477179]
[1771672154109,0.014651,68272.0,68262.0,0.00011879]
[1771672154308,0.014652,68270.0,68262.0,0.00011879]
[1771672154506,0.014651,68271.0,68262.0,0.00011879]
[1771672154700,0.014652,68270.0,68262.0,0.00011879]
[1771672156806,0.014651,68271.0,68262.0,0.00011879]
[1771672157307,0.014651,68271.0,68262.0,0.01477179]
[1771672158007,0.014652,68268.0,68262.0,0.00011879]
[1771672158605,0.014652,68267.0,68262.0,0.00011879]
[1771672158806,0.014652,68270.0,68262.0,0.00011879]
[1771672159405,0.014651,68273.0,68262.0,0.01477179]
[1771672159606,0.014651,68272.0,68262.0,0.01477179]
[1771672160803,0.01465,68277.0,68266.0,0.014652]
[1771672161107,0.014651,68275.0,68267.0,0.17856286]
[1771672161309,0.014651,68275.0,68266.0,0.014652]
[1771672161912,0.01465,68276.0,68268.0,0.014652]
[1771672162308,0.01465,68278.0,68269.0,0.014652]
[1771672162504,0.01465,68278.0,68270.0,0.014652]
[1771672162706,0.14090139,68281.0,68270.0,0.014652]
[1771672162909,0.014649,68280.0,68271.0,0.014651]
[1771672163212,0.01465,68279.0,68270.0,0.19321486]
[1771672163811,0.01465,68280.0,68271.0,0.014651]
[1771672164812,0.014649,68284.0,68274.0,0.014651]
[1771672165016,0.014649,68283.0,68273.0,0.014651]
[1771672165207,0.12625239,68289.0,68276.0,0.01465]
[1771672165208,0.014648,68285.0,68276.0,0.01465]
[1771672165407,0.014649,68285.0,68275.0,0.01465]
[1771672165609,0.32975482,68284.0,68275.0,0.01465]
[1771672165811,0.34440382,68283.0,68273.0,0.014651]
[1771672166115,0.32975482,68282.0,68273.0,0.014651]
[1771672166317,0.32975482,68281.0,68274.0,0.014651]
[1771672166618,0.32975482,68281.0,68273.0,0.014651]
[1771672166619,0.32975482,68280.0,68273.0,0.014651]
[1771672166814,0.12625239,68297.0,68277.0,0.01465]
[1771672167115,0.014648,68286.0,68280.0,0.17856286]
[1771672167301,0.32975386,68285.0,68277.0,0.01465]
[1771672167503,0.32975386,68284.0,68276.0,0.0293]
[1771672167707,0.014648,68285.0,68276.0,0.01465]
[1771672168108,0.014648,68285.0,68275.0,0.01465]
[1771672168307,0.3443904,68284.0,68275.0,0.01465]
[1771672168609,0.014649,68284.0,68275.0,0.01465]
[1771672169817,0.014649,68284.0,68274.0,0.014651]
[1771672170008,0.014648,68285.0,68275.0,0.01465]
[1771672170207,0.32974102,68284.0,68275.0,0.01465]
[1771672170408,0.014648,68285.0,68275.0,0.01465]
[1771672170611,0.32974102,68284.0,68275.0,0.014651]
[1771672170903,0.32974102,68284.0,68274.0,0.014651]
[1771672170904,0.014648,68285.0,68274.0,0.014651]
[1771672171211,0.34439002,68284.0,68274.0,0.014651]
[1771672171411,0.014649,68284.0,68275.0,0.014651]
[1771672171816,0.014648,68287.0,68277.0,0.01465]
[1771672172023,0.34438902,68286.0,68275.0,0.01465]
[1771672172221,0.32974102,68285.0,68276.0,0.01465]
[1771672172516,0.32974102,68284.0,68276.0,0.01465]
[1771672172710,0.014648,68286.0,68276.0,0.01465]
[1771672172910,0.32974102,68285.0,68276.0,0.01465]
[1771672173216,0.32974102,68284.0,68276.0,0.01465]
[1771672173416,0.014648,68286.0,68276.0,0.01465]
[1771672173613,0.34438902,68285.0,68270.0,0.05723219]
[1771672173818,0.014649,68282.0,68270.0,0.014651]
[1771672174111,0.014649,68282.0,68272.0,0.014651]
[1771672174316,0.014649,68282.0,68273.0,0.014651]
[1771672174818,0.014649,68283.0,68273.0,0.014651]
[1771672175918,0.014649,68284.0,68273.0,0.014651]
[1771672176110,0.014649,68284.0,68274.0,0.014651]
[1771672176309,0.32974003,68283.0,68274.0,0.014651]
[1771672176505,0.32974003,68282.0,68274.0,0.014651]
[1771672176714,0.014649,68284.0,68274.0,0.014651]
[1771672176914,0.32974121,68283.0,68274.0,0.014651]
[1771672177116,0.32974121,68282.0,68274.0,0.014651]
[1771672177314,0.32974121,68281.0,68274.0,0.014651]
[1771672177515,0.29186934,68280.0,68272.0,0.014651]
[1771672177715,0.014649,68284.0,68272.0,0.014651]
[1771672177917,0.014649,68284.0,68274.0,0.014651]
[1771672179913,0.014648,68285.0,68275.0,0.01465]
[1771672180120,0.014649,68284.0,68275.0,0.01465]
[1771672180314,0.014649,68284.0,68274.0,0.014651]
[1771672180818,0.014648,68286.0,68275.0,0.01465]
[1771672181022,0.014649,68284.0,68274.0,0.014651]
[1771672183516,0.014649,68284.0,68271.0,0.014651]
[1771672183822,0.014649,68284.0,68273.0,0.014651]
[1771672184927,0.014649,68285.0,68274.0,0.014651]
[1771672185914,0.014648,68287.0,68276.0,0.01465]
[1771672186227,0.014648,68286.0,68275.0,0.014651]
[1771672187328,0.014648,68287.0,68275.0,0.01465]
[1771672187528,0.23605055,68292.0,68281.0,0.014649]
[1771672187732,0.014647,68293.0,68282.0,0.014649]
[1771672188123,0.23605055,68299.0,68284.0,0.014649]
[1771672188326,0.014646,68297.0,68284.0,0.014649]
[1771672188720,0.014646,68295.0,68284.0,0.014649]
[1771672188916,0.014645,68301.0,68289.0,0.014647]
[1771672189218,0.014645,68301.0,68282.0,0.014649]
[1771672189219,0.014646,68298.0,68288.0,0.014648]
[1771672189623,0.014647,68293.0,68274.0,0.135751]
[1771672189819,0.014646,68295.0,68284.0,0.014649]
[1771672189820,0.014646,68294.0,68284.0,0.014649]
[1771672191830,0.014646,68294.0,68284.0,0.014648]
[1771672192129,0.014646,68294.0,68283.0,0.014649]
[1771672192332,0.23605055,68301.0,68282.0,0.014649]
[1771672192520,0.014646,68296.0,68286.0,0.014648]
[1771672192827,0.30248039,68295.0,68286.0,0.014648]
[1771672193133,0.25069655,68299.0,68278.0,0.01465]
[1771672193323,0.014647,68292.0,68282.0,0.014649]
[1771672194028,0.014647,68293.0,68283.0,0.014649]
[1771672194923,0.014646,68294.0,68284.0,0.014649]
[1771672195123,0.014647,68292.0,68283.0,0.014649]
[1771672195830,0.014646,68294.0,68275.0,0.01465]
[1771672195831,0.014646,68297.0,68286.0,0.014648]
[1771672196032,0.014646,68295.0,68286.0,0.014648]
[1771672196835,0.014646,68294.0,68284.0,0.014648]
[1771672197026,0.014646,68295.0,68285.0,0.014648]
[1771672197831,0.014646,68294.0,68285.0,0.014648]
[1771672198635,0.014647,68294.0,68285.0,0.014648]
[1771672198837,0.014646,68295.0,68285.0,0.014648]
[1771672199734,0.014646,68295.0,68285.0,0.029296]
[1771672200037,0.014646,68296.0,68287.0,0.014648]
[1771672200238,0.014646,68296.0,68285.0,0.014648]
[1771672200441,0.014646,68295.0,68285.0,0.014648]
[1771672200943,0.014646,68298.0,68288.0,0.014648]
[1771672201236,0.23605055,68295.0,68280.0,0.014649]
[1771672201440,0.23605055,68295.0,68282.0,0.014649]
[1771672201643,0.014647,68294.0,68284.0,0.014649]
[1771672201842,0.23605055,68295.0,68286.0,0.014648]
[1771672202135,0.014647,68294.0,68284.0,0.014649]
[1771672202330,0.014647,68293.0,68282.0,0.014649]
[1771672202527,0.014647,68290.0,68280.0,0.014649]
[1771672202731,0.029294,68294.0,68284.0,0.014648]
[1771672202931,0.23605055,68295.0,68280.0,0.014649]
[1771672203231,0.014647,68291.0,68281.0,0.014649]
[1771672203431,0.25069655,68295.0,68282.0,0.014649]
[1771672203832,0.014647,68293.0,68283.0,0.014649]
[1771672204344,0.25069655,68295.0,68284.0,0.014649]
[1771672204547,0.014646,68294.0,68284.0,0.014649]
[1771672204839,0.014646,68294.0,68285.0,0.014648]
[1771672205043,0.014647,68293.0,68284.0,0.014649]
[1771672205548,0.014647,68293.0,68283.0,0.014649]
[1771672205943,0.014647,68293.0,68284.0,0.014649]
[1771672206246,0.014647,68293.0,68283.0,0.014649]
[1771672206835,0.014646,68298.0,68285.0,0.014648]
[1771672207035,0.014646,68294.0,68285.0,0.014648]
[1771672207241,0.014646,68294.0,68284.0,0.014649]
[1771672207947,0.014647,68292.0,68281.0,0.014649]
[1771672208244,0.014647,68291.0,68281.0,0.014649]
[1771672208946,0.014647,68292.0,68283.0,0.014649]
[1771672210047,0.014646,68295.0,68285.0,0.014648]
[1771672210244,0.014647,68294.0,68285.0,0.014648]
[1771672210444,0.014646,68295.0,68285.0,0.014648]
[1771672211048,0.014646,68295.0,68286.0,0.014648]
[1771672211453,0.014646,68297.0,68287.0,0.014648]
[1771672211649,0.014645,68299.0,68290.0,0.014647]
[1771672211849,0.014645,68300.0,68290.0,0.014647]
[1771672212347,0.014645,68300.0,68288.0,0.014648]
[1771672212551,0.014645,68300.0,68243.0,0.76640435]
[1771672212552,0.014647,68294.0,68283.0,0.014649]
[1771672213055,0.014646,68295.0,68285.0,0.014648]
[1771672213753,0.014647,68294.0,68285.0,0.014648]
[1771672214053,0.014646,68296.0,68287.0,0.014648]
[1771672214347,0.014646,68296.0,68285.0,0.014648]
[1771672214550,0.014646,68295.0,68286.0,0.014648]
[1771672214936,0.014646,68296.0,68286.0,0.014648]
[1771672215249,0.014646,68296.0,68284.0,0.014648]
[1771672215250,0.014647,68292.0,68281.0,0.014649]
[1771672215457,0.014647,68293.0,68284.0,0.014649]
[1771672215842,0.014647,68294.0,68284.0,0.029297]
[1771672216058,0.014647,68294.0,68284.0,0.014648]
[1771672216351,0.014646,68296.0,68286.0,0.014648]
[1771672216650,0.014646,68295.0,68286.0,0.014648]
[1771672218052,0.014646,68295.0,68289.0,0.00084]
[1771672218245,0.014646,68295.0,68286.0,0.014648]
[1771672218643,0.014647,68293.0,68279.0,0.01465]
[1771672218850,0.23619139,68295.0,68284.0,0.014648]
[1771672219050,0.23619139,68295.0,68286.0,0.014648]
[1771672219252,0.014646,68294.0,68285.0,0.014648]
[1771672221357,0.014647,68294.0,68283.0,0.014649]
[1771672221561,0.014647,68292.0,68282.0,0.014649]
[1771672221763,0.014647,68292.0,68283.0,0.014649]
[1771672224079,0.014647,68294.0,68285.0,0.014648]
[1771672224265,0.014646,68296.0,68285.0,0.014648]
[1771672224461,0.26871721,68295.0,68286.0,0.014648]
[1771672224661,0.014646,68296.0,68286.0,0.014648]
[1771672224877,0.014646,68296.0,68285.0,0.014648]
[1771672225076,0.014647,68294.0,68283.0,0.014649]
[1771672225579,0.014647,68294.0,68285.0,0.014648]
[1771672225778,0.014646,68296.0,68278.0,0.01465]
[1771672225981,0.014646,68296.0,68287.0,0.014648]
[1771672227275,0.014646,68296.0,68287.0,0.029296]
[1771672227477,0.014646,68296.0,68287.0,0.014648]
[1771672227778,0.029292,68296.0,68287.0,0.014648]
[1771672227977,0.014646,68295.0,68287.0,0.014648]
[1771672228478,0.014646,68296.0,68287.0,0.014648]
[1771672229084,0.014646,68295.0,68287.0,0.014648]
[1771672229883,0.014646,68296.0,68287.0,0.014648]
[1771672231884,0.014646,68295.0,68287.0,0.014648]
[1771672234884,0.014647,68294.0,68285.0,0.014648]
[1771672235084,0.014647,68294.0,68285.0,0.029296]
[1771672235286,0.014647,68294.0,68286.0,0.014648]
[1771672235889,0.014646,68295.0,68286.0,0.014648]
[1771672238580,0.014646,68295.0,68282.0,0.014649]
[1771672238788,0.014647,68292.0,68283.0,0.014649]
[1771672239697,0.014646,68294.0,68284.0,0.014649]
[1771672239888,0.014646,68294.0,68280.0,0.19314143]
[1771672240073,0.029293,68294.0,68284.0,0.014648]
[1771672240791,0.014646,68294.0,68284.0,0.014648]
[1771672242391,0.014646,68294.0,68285.0,0.014648]
[1771672243190,0.014646,68296.0,68287.0,0.014648]
[1771672244194,0.029292,68296.0,68287.0,0.014648]
[1771672244391,0.014646,68295.0,68287.0,0.014648]
[1771672244595,0.014646,68296.0,68287.0,0.014648]
[1771672244793,0.014646,68298.0,68289.0,0.014648]
[1771672244990,0.26138804,68297.0,68289.0,0.014648]
[1771672245196,0.014646,68297.0,68289.0,0.014648]
[1771672245497,0.014646,68297.0,68288.0,0.029296]
[1771672245796,0.014646,68297.0,68289.0,0.014648]
[1771672247990,0.014646,68296.0,68289.0,0.014648]
[1771672248400,0.014646,68295.0,68288.0,0.014648]
[1771672248597,0.014647,68294.0,68285.0,0.014648]
[1771672248789,0.014647,68294.0,68287.0,0.014648]
[1771672249302,0.014646,68295.0,68287.0,0.014648]
[1771672250198,0.014647,68294.0,68281.0,0.014649]
[1771672250401,0.014646,68297.0,68289.0,0.014647]
[1771672251397,0.014646,68297.0,68287.0,0.17849243]
[1771672251398,0.014646,68295.0,68287.0,0.17849243]
[1771672251796,0.014646,68295.0,68287.0,0.19314043]
[1771672252095,0.2161833,68314.0,68286.0,0.14977499]
[1771672252295,0.48057295,68313.0,68292.0,0.014647]
[1771672252491,0.48057295,68313.0,68290.0,0.19313943]
[1771672252492,0.014645,68302.0,68291.0,0.014647]
[1771672252687,0.2191833,68299.0,68287.0,0.014648]
[1771672252892,0.014645,68303.0,68280.0,0.17849243]
[1771672252893,0.014646,68296.0,68280.0,0.17849243]
[1771672253190,0.014645,68303.0,68280.0,0.17849243]
[1771672253191,0.014646,68298.0,68286.0,0.014648]
[1771672253392,0.014645,68299.0,68288.0,0.19314043]
[1771672253586,0.014646,68298.0,68288.0,0.014648]
[1771672253897,0.014646,68298.0,68284.0,0.014649]
[1771672253898,0.014646,68298.0,68287.0,0.014648]
[1771672254201,0.014646,68298.0,68288.0,0.17849243]
[1771672254900,0.014646,68298.0,68287.0,0.014648]
[1771672255097,0.2191833,68300.0,68280.0,0.17849243]
[1771672255300,0.014647,68294.0,68284.0,0.014649]
[1771672255501,0.014646,68296.0,68285.0,0.014648]
[1771672256405,0.014647,68294.0,68283.0,0.014649]
[1771672256597,0.2338293,68295.0,68284.0,0.014649]
[1771672256903,0.014647,68294.0,68284.0,0.014649]
[1771672257294,0.2338293,68295.0,68285.0,0.014648]
[1771672257598,0.2338293,68295.0,68284.0,0.014649]
[1771672259303,0.2191833,68295.0,68286.0,0.014648]
[1771672259899,0.2191833,68295.0,68284.0,0.014649]
[1771672259900,0.2191833,68292.0,68273.0,0.014651]
[1771672260112,0.01465,68279.0,68263.0,0.03694909]
[1771672260403,0.014651,68272.0,68262.0,0.00011879]
[1771672260598,0.014651,68272.0,68256.0,0.014655]
[1771672260599,0.014652,68270.0,68259.0,0.014654]
[1771672260903,0.014652,68269.0,68258.0,0.014654]
[1771672261089,0.2338353,68269.0,68258.0,0.014654]
[1771672261494,0.2338353,68269.0,68259.0,0.014654]
[1771672261706,0.00010712,68268.0,68259.0,0.014654]
[1771672261901,0.00010712,68268.0,68260.0,0.014654]
[1771672262206,0.014651,68274.0,68264.0,0.014653]
[1771672262392,0.01465,68276.0,68266.0,0.014652]
[1771672262700,0.01465,68276.0,68260.0,0.014654]
[1771672262701,0.2338343,68275.0,68265.0,0.014653]
[1771672262904,0.014651,68274.0,68262.0,0.014653]
[1771672263109,0.2191833,68275.0,68266.0,0.014652]
[1771672263904,0.17849243,68280.0,68267.0,0.014652]
[1771672263905,0.014649,68280.0,68267.0,0.014652]
[1771672264095,0.01465,68279.0,68268.0,0.014652]
[1771672264402,0.01465,68279.0,68269.0,0.014652]
[1771672264996,0.01465,68278.0,68269.0,0.014652]
[1771672265400,0.014651,68273.0,68261.0,0.014653]
[1771672265605,0.014651,68272.0,68264.0,0.014653]
[1771672265811,0.014651,68273.0,68264.0,0.014653]
[1771672266800,0.014651,68274.0,68265.0,0.014653]
[1771672267503,0.01465,68276.0,68267.0,0.014652]
[1771672268500,0.014651,68275.0,68267.0,0.014652]
[1771672268704,0.014651,68275.0,68266.0,0.014652]
[1771672269309,0.014651,68275.0,68264.0,0.014653]
[1771672270310,0.014651,68274.0,68265.0,0.014653]
[1771672270501,0.014651,68273.0,68263.0,0.014653]
[1771672270898,0.014651,68272.0,68263.0,0.014653]